fUST/lending_fUST_20250722
["ID","MTS","AMOUNT","RATE_DAILY","PERIOD"]
[373987565,1753170640431,-460.0,0.00017797,2]
[373987566,1753170640440,-902.59,0.00017797,2]
[373987567,1753170640451,-460.0,0.00017797,2]
[373987568,1753170640462,-460.0,0.00017797,2]
[373987569,1753170640474,-460.0,0.00017797,2]
[373987570,1753170640486,-487.4,0.00017797,2]
[373987571,1753170640498,-663.07,0.00017797,2]
[373987572,1753170640510,-175.90197964,0.00017797,2]
[373987573,1753170640522,-460.0,0.00017797,2]
[373987574,1753170640532,-460.0,0.00017797,2]
[373987575,1753170640542,-2002.97,0.00017797,2]
[373987577,1753170640553,-460.0,0.00017797,2]
[373987578,1753170640563,-460.0,0.00017798,2]
[373987579,1753170640575,-503.84,0.00017798,2]
[373987580,1753170640587,-460.0,0.00017798,2]
[373987581,1753170640598,-537.89490463,0.00017798,2]
[373987582,1753170640608,-608.14,0.00017798,2]
[373987583,1753170640619,-713.71,0.00017798,2]
[373987584,1753170640630,-460.0,0.00017799,2]
[373987585,1753170640640,-262.99,0.00017799,2]
[373987586,1753170640650,-460.0,0.00017799,2]
[373987587,1753170640660,-460.0,0.00017799,2]
[373987588,1753170640672,-460.0,0.00017799,2]
[373987589,1753170640682,-1358.37,0.00017799,2]
[373987590,1753170640693,-593.33,0.000178,2]
[373987591,1753170640703,-2052.69489342,0.000179,2]
[373987592,1753170640714,-810.48,0.00018069,2]
[373987593,1753170640725,-791.99,0.00018069,2]
[373987594,1753170640736,-460.0,0.00018069,2]
[373987595,1753170640746,-1376.41,0.00018069,2]
[373987596,1753170640759,-1828.87,0.00018071,2]
[373987597,1753170640770,-788.65,0.00018071,2]
[373987598,1753170640782,-460.0,0.00018071,2]
[373987599,1753170640793,-460.0,0.00018071,2]
[373987600,1753170640803,-460.0,0.00018071,2]
[373987601,1753170640815,-1246.27,0.00018071,2]
[373987602,1753170640827,-460.0,0.00018071,2]
[373987603,1753170640838,-902.59,0.00018071,2]
[373987604,1753170640850,-460.0,0.00018071,2]
[373987605,1753170640867,-460.0,0.00018071,2]
[373987606,1753170640877,-460.0,0.00018071,2]
[373987607,1753170640888,-487.4,0.00018071,2]
[373987608,1753170640899,-663.07,0.00018071,2]
[373987609,1753170640910,-460.0,0.00018071,2]
[373987610,1753170640920,-2002.97,0.00018071,2]
[373987611,1753170640931,-460.0,0.00018071,2]
[373987612,1753170640942,-460.0,0.00018071,2]
[373987613,1753170640953,-460.0,0.00018072,2]
[373987614,1753170640963,-503.84,0.00018072,2]
[373987615,1753170640974,-460.0,0.00018072,2]
[373987616,1753170640985,-608.14,0.00018072,2]
[373987617,1753170640996,-713.71,0.00018072,2]
[373987618,1753170641009,-460.0,0.00018073,2]
[373987619,1753170641020,-460.0,0.00018073,2]
[373987620,1753170641031,-460.0,0.00018073,2]
[373987621,1753170641042,-1358.37,0.00018073,2]
[373987622,1753170641053,-593.33,0.00018074,2]
[373987623,1753170641064,-2052.69489342,0.00018176,2]
[373987624,1753170641074,-500.0,0.00018235,2]
[373987625,1753170641085,-225.0,0.00018247,2]
[373987626,1753170641096,-160.0,0.00018287,2]
[373987627,1753170641116,-476.60259688,0.00018287,2]
[373987628,1753170641130,-160.0,0.00018293,2]
[373987629,1753170641141,-215.80012421,0.00018316,2]
[373987630,1753170641152,-526.07605158,0.00018316,2]
[373987631,1753170641163,-839.90542673,0.00018316,2]
[373987632,1753170641177,-160.0,0.00018316,2]
[373987633,1753170641187,-214.6393183,0.00018316,2]
[373987634,1753170641198,-231.06963584,0.00018316,2]
[373987635,1753170641209,-12619.94447631,0.00018316,2]
[373987636,1753170641220,-810.48,0.00018343,2]
[373987637,1753170641230,-791.99,0.00018343,2]
[373987638,1753170641241,-460.0,0.00018343,2]
[373987639,1753170641251,-1376.41,0.00018343,2]
[373987640,1753170641262,-1828.87,0.00018345,2]
[373987641,1753170641272,-788.65,0.00018345,2]
[373987642,1753170641283,-460.0,0.00018345,2]
[373987643,1753170641294,-460.0,0.00018345,2]
[373987644,1753170641305,-232.54249376,0.00018345,2]
[373987645,1753170641317,-1246.27,0.00018345,2]
[373987646,1753170641327,-460.0,0.00018345,2]
[373987647,1753170641336,-902.59,0.00018345,2]
[373987648,1753170641346,-166.88,0.00018345,2]
[373987649,1753170641355,-460.0,0.00018345,2]
[373987650,1753170641472,-460.0,0.00018345,2]
[373987651,1753170641523,-487.4,0.00018345,2]
[373987652,1753170641532,-663.07,0.00018345,2]
[373987653,1753170641542,-460.0,0.00018345,2]
[373987654,1753170641552,-460.0,0.00018345,2]
[373987655,1753170641561,-2002.97,0.00018345,2]
[373987656,1753170641571,-460.0,0.00018345,2]
[373987657,1753170641581,-283.3040134,0.00018346,2]
[373987658,1753170641590,-503.84,0.00018346,2]
[373987659,1753170641599,-460.0,0.00018346,2]
[373987660,1753170641609,-608.14,0.00018346,2]
[373987661,1753170641618,-713.71,0.00018346,2]
[373987662,1753170641628,-460.0,0.00018347,2]
[373987663,1753170641639,-460.0,0.00018347,2]
[373987664,1753170641648,-206.20015387,0.00018347,2]
[373987665,1753170641657,-1358.37,0.00018347,2]
[373987666,1753170641666,-593.33,0.00018348,2]
[373987667,1753170641675,-286.34611716,0.00018352,2]
[373987668,1753170641684,-160.0,0.00018354,2]
[373987669,1753170641693,-160.0,0.00018354,2]
[373987670,1753170641702,-160.0,0.00018354,2]
[373987671,1753170641712,-2052.69489342,0.00018452,2]
[373987672,1753170641721,-5540.37567966,0.00018522,2]
[373987673,1753170641734,-560.12,0.00018609,3]
[373987674,1753170641743,-680.16,0.0001861,3]
[373987675,1753170641753,-340.08,0.0001861,3]
[373987676,1753170641762,-810.48,0.00018617,2]
[373987677,1753170641772,-791.99,0.00018617,2]
[373987678,1753170641781,-460.0,0.00018617,2]
[373987679,1753170641791,-1376.41,0.00018617,2]
[373987680,1753170641800,-1828.87,0.00018619,2]
[373987681,1753170641809,-788.65,0.00018619,2]
[373987682,1753170641819,-460.0,0.00018619,2]
[373987683,1753170641828,-460.0,0.00018619,2]
[373987684,1753170641837,-1246.27,0.00018619,2]
[373987685,1753170641849,-460.0,0.00018619,2]
[373987686,1753170641859,-902.59,0.00018619,2]
[373987687,1753170641869,-460.0,0.00018619,2]
[373987688,1753170641878,-460.0,0.00018619,2]
[373987689,1753170641888,-487.4,0.00018619,2]
[373987690,1753170641897,-663.07,0.00018619,2]
[373987691,1753170641906,-460.0,0.00018619,2]
[373987692,1753170641915,-460.0,0.00018619,2]
[373987693,1753170641925,-460.0,0.00018619,2]
[373987694,1753170641935,-2002.97,0.00018619,2]
[373987695,1753170641944,-503.84,0.0001862,2]
[373987696,1753170641954,-315.88,0.0001862,2]
[373987697,1753170641963,-608.14,0.0001862,2]
[373987698,1753170641972,-713.71,0.0001862,2]
[373987699,1753170641982,-460.0,0.00018621,2]
[373987700,1753170641991,-460.0,0.00018621,2]
[373987701,1753170642001,-1358.37,0.00018621,2]
[373987702,1753170642011,-593.33,0.00018622,2]
[373987703,1753170642020,-2052.69489342,0.00018728,2]
[373987704,1753170642029,-260.0,0.00018841,2]
[373987705,1753170642038,-810.48,0.00018891,2]
[373987706,1753170642048,-791.99,0.00018891,2]
[373987707,1753170642057,-460.0,0.00018891,2]
[373987708,1753170642067,-1376.41,0.00018891,2]
[373987709,1753170642076,-1828.87,0.00018893,2]
[373987710,1753170642086,-788.65,0.00018893,2]
[373987711,1753170642095,-460.0,0.00018893,2]
[373987712,1753170642105,-249.11,0.00018893,2]
[373987713,1753170642114,-1246.27,0.00018893,2]
[373987714,1753170642124,-460.0,0.00018893,2]
[373987715,1753170642133,-902.59,0.00018893,2]
[373987716,1753170642142,-460.0,0.00018893,2]
[373987717,1753170642152,-460.0,0.00018893,2]
[373987718,1753170642163,-487.4,0.00018893,2]
[373987719,1753170642173,-663.07,0.00018893,2]
[373987720,1753170642183,-460.0,0.00018893,2]
[373987721,1753170642193,-460.0,0.00018893,2]
[373987722,1753170642203,-460.0,0.00018893,2]
[373987723,1753170642213,-2002.97,0.00018893,2]
[373987724,1753170642222,-503.84,0.00018894,2]
[373987725,1753170642232,-608.14,0.00018894,2]
[373987726,1753170642243,-713.71,0.00018894,2]
[373987727,1753170642254,-460.0,0.00018895,2]
[373987728,1753170642264,-1358.37,0.00018895,2]
[373987729,1753170642274,-593.33,0.00018896,2]
[373987730,1753170642285,-715.27863798,0.000189,2]
[373987731,1753170642294,-2052.69489342,0.00019003,2]
[373987732,1753170642303,-810.48,0.00019165,2]
[373987733,1753170642313,-791.99,0.00019165,2]
[373987734,1753170642322,-460.0,0.00019165,2]
[373987735,1753170642332,-1376.41,0.00019165,2]
[373987736,1753170642341,-1828.87,0.00019167,2]
[373987737,1753170642351,-788.65,0.00019167,2]
[373987738,1753170642360,-460.0,0.00019167,2]
[373987739,1753170642369,-1246.27,0.00019167,2]
[373987740,1753170642379,-460.0,0.00019167,2]
[373987741,1753170642388,-902.59,0.00019167,2]
[373987742,1753170642398,-460.0,0.00019167,2]
[373987743,1753170642408,-460.0,0.00019167,2]
[373987744,1753170642417,-487.4,0.00019167,2]
[373987745,1753170642426,-663.07,0.00019167,2]
[373987746,1753170642436,-460.0,0.00019167,2]
[373987747,1753170642446,-460.0,0.00019167,2]
[373987748,1753170642456,-460.0,0.00019167,2]
[373987749,1753170642465,-2002.97,0.00019167,2]
[373987750,1753170642476,-503.84,0.00019168,2]
[373987751,1753170642485,-608.14,0.00019168,2]
[373987753,1753170642495,-713.71,0.00019168,2]
[373987754,1753170642505,-460.0,0.00019169,2]
[373987755,1753170642514,-1358.37,0.00019169,2]
[373987756,1753170642524,-593.33,0.0001917,2]
[373987757,1753170642533,-249.385251,0.00019178,2]
[373987759,1753170642542,-2052.69489342,0.00019279,2]
[373987760,1753170642551,-100000.0,0.00019329,2]
[373987761,1753170642561,-360.0,0.00019389,2]
[373987762,1753170642570,-249.31997612,0.00019412,2]
[373987763,1753170642579,-810.48,0.00019439,2]
[373987764,1753170642589,-791.99,0.00019439,2]
[373987765,1753170642598,-460.0,0.00019439,2]
[373987766,1753170642607,-1376.41,0.00019439,2]
[373987767,1753170642616,-1828.87,0.00019441,2]
[373987768,1753170642625,-788.65,0.00019441,2]
[373987769,1753170642635,-452.13661612,0.00019441,2]
[373987770,1753170642644,-1246.27,0.00019441,2]
[373987771,1753170642654,-460.0,0.00019441,2]
[373987772,1753170642664,-902.59,0.00019441,2]
[373987773,1753170642673,-460.0,0.00019441,2]
[373987775,1753170642683,-460.0,0.00019441,2]
[373987777,1753170642692,-487.4,0.00019441,2]
[373987779,1753170642701,-663.07,0.00019441,2]
[373987781,1753170642711,-257.56,0.00019441,2]
[373987783,1753170642720,-460.0,0.00019441,2]
[373987785,1753170642730,-460.0,0.00019441,2]
[373987787,1753170642739,-2002.97,0.00019441,2]
[373987789,1753170642749,-503.84,0.00019442,2]
[373987791,1753170642759,-608.14,0.00019442,2]
[373987793,1753170642769,-713.71,0.00019442,2]
[373987795,1753170642778,-460.0,0.00019443,2]
[373987797,1753170642787,-1358.37,0.00019443,2]
[373987799,1753170642796,-593.33,0.00019444,2]
[373987801,1753170642806,-2052.69489342,0.00019555,2]
[373987803,1753170642815,-810.48,0.00019713,2]
[373987805,1753170642824,-791.99,0.00019713,2]
[373987807,1753170642835,-460.0,0.00019713,2]
[373987809,1753170642844,-1376.41,0.00019713,2]
[373987811,1753170642853,-1828.87,0.00019715,2]
[373987813,1753170642863,-788.65,0.00019715,2]
[373987815,1753170642873,-1246.27,0.00019715,2]
[373987817,1753170642882,-460.0,0.00019715,2]
[373987819,1753170642891,-902.59,0.00019715,2]
[373987821,1753170642901,-171.46848106,0.00019715,2]
[373987823,1753170642910,-460.0,0.00019715,2]
[373987825,1753170642920,-487.4,0.00019715,2]
[373987827,1753170642930,-663.07,0.00019715,2]
[373987829,1753170642940,-460.0,0.00019715,2]
[373987831,1753170642950,-460.0,0.00019715,2]
[373987833,1753170642959,-2002.97,0.00019715,2]
[373987835,1753170642969,-503.84,0.00019716,2]
[373987837,1753170642978,-608.14,0.00019716,2]
[373987839,1753170642988,-713.71,0.00019716,2]
[373987841,1753170642997,-460.0,0.00019717,2]
[373987843,1753170643007,-1358.37,0.00019717,2]
[373987844,1753170643017,-593.33,0.00019718,2]
[373987845,1753170643027,-2052.69489342,0.00019831,2]
[373987847,1753170643036,-151.0,0.00019836,3]
[373987849,1753170643046,-460.0,0.00019937,2]
[373987851,1753170643056,-810.48,0.00019987,2]
[373987853,1753170643065,-791.99,0.00019987,2]
[373987855,1753170643075,-460.0,0.00019987,2]
[373987857,1753170643084,-1376.41,0.00019987,2]
[373987859,1753170643094,-1828.87,0.00019989,2]
[373987861,1753170643103,-788.65,0.00019989,2]
[373987863,1753170643113,-1246.27,0.00019989,2]
[373987865,1753170643122,-460.0,0.00019989,2]
[373987867,1753170643131,-902.59,0.00019989,2]
[373987869,1753170643140,-460.0,0.00019989,2]
[373987871,1753170643150,-487.4,0.00019989,2]
[373987873,1753170643160,-663.07,0.00019989,2]
[373987875,1753170643174,-460.0,0.00019989,2]
[373987877,1753170643183,-460.0,0.00019989,2]
[373987879,1753170643193,-2002.97,0.00019989,2]
[373987881,1753170643203,-503.84,0.0001999,2]
[373987883,1753170643212,-608.14,0.0001999,2]
[373987885,1753170643222,-713.71,0.0001999,2]
[373987887,1753170643232,-460.0,0.00019991,2]
[373987889,1753170643243,-1358.37,0.00019991,2]
[373987891,1753170643253,-593.33,0.00019992,2]
[373987893,1753170643263,-512.46627473,0.0002,2]
[373987895,1753170643272,-2052.69489342,0.00020107,2]
[373987897,1753170643281,-161.408051,0.00020187,2]
[373987899,1753170643291,-810.48,0.00020261,2]
[373987901,1753170643300,-791.99,0.00020261,2]
[373987904,1753170643310,-460.0,0.00020261,2]
[373987907,1753170643319,-1376.41,0.00020261,2]
[373987909,1753170643329,-1828.87,0.00020263,2]
[373987911,1753170643339,-788.65,0.00020263,2]
[373987913,1753170643348,-1246.27,0.00020263,2]
[373987915,1753170643358,-460.0,0.00020263,2]
[373987917,1753170643367,-902.59,0.00020263,2]
[373987919,1753170643377,-460.0,0.00020263,2]
[373987921,1753170643386,-487.4,0.00020263,2]
[373987923,1753170643396,-663.07,0.00020263,2]
[373987926,1753170643406,-460.0,0.00020263,2]
[373987928,1753170643416,-460.0,0.00020263,2]
[373987930,1753170643425,-2002.97,0.00020263,2]
[373987932,1753170643435,-503.84,0.00020264,2]
[373987934,1753170643444,-608.14,0.00020264,2]
[373987936,1753170643454,-713.71,0.00020264,2]
[373987938,1753170643463,-460.0,0.00020265,2]
[373987940,1753170643472,-1358.37,0.00020265,2]
[373987942,1753170643482,-593.33,0.00020266,2]
[373987944,1753170643491,-151.0,0.00020343,4]
[373987946,1753170643501,-2052.69489342,0.00020383,3]
[373987948,1753170643510,-560.0,0.00020485,2]
[373987950,1753170643520,-810.48,0.00020535,2]
[373987952,1753170643530,-791.99,0.00020535,2]
[373987954,1753170643539,-460.0,0.00020535,2]
[373987956,1753170643549,-1376.41,0.00020535,2]
[373987958,1753170643558,-1828.87,0.00020536,2]
[373987960,1753170643568,-788.65,0.00020536,2]
[373987962,1753170643578,-1246.27,0.00020536,2]
[373987964,1753170643588,-460.0,0.00020536,2]
[373987966,1753170643597,-902.59,0.00020536,2]
[373987968,1753170643607,-528.42792919,0.00020536,2]
[373987970,1753170643616,-487.4,0.00020536,2]
[373987972,1753170643626,-663.07,0.00020536,2]
[373987974,1753170643636,-460.0,0.00020536,2]
[373987976,1753170643646,-460.0,0.00020536,2]
[373987978,1753170643655,-503.84,0.00020538,2]
[373987980,1753170643665,-608.14,0.00020538,2]
[373987982,1753170643675,-713.71,0.00020538,2]
[373987984,1753170643684,-460.0,0.00020539,2]
[373987987,1753170643694,-1358.37,0.00020539,2]
[373987989,1753170643703,-593.33,0.0002054,2]
[373987990,1753170643712,-2052.69489342,0.00020659,3]
[373987992,1753170643722,-178.80003706,0.00020716,2]
[373987994,1753170643731,-1186.895,0.00020716,2]
[373987996,1753170643741,-151.0,0.0002077,2]
[373987998,1753170643750,-151.0,0.0002077,2]
[373988000,1753170643760,-215.0738,0.0002077,2]
[373988002,1753170643769,-151.0,0.0002077,2]
[373988004,1753170643779,-151.0,0.0002077,2]
[373988006,1753170643788,-2216.17534937,0.0002077,2]
[373988008,1753170643797,-151.0,0.0002077,2]
[373988010,1753170643807,-151.0,0.0002077,2]
[373988013,1753170643817,-152.15042828,0.0002077,2]
[373988015,1753170643826,-151.0,0.0002077,2]
[373988016,1753170643835,-151.0,0.0002077,2]
[373988019,1753170643845,-161.90412321,0.0002077,2]
[373988021,1753170643854,-151.0,0.0002077,2]
[373988023,1753170643863,-151.0,0.0002077,2]
[373988025,1753170643872,-151.0,0.0002077,2]
[373988027,1753170643881,-151.0,0.0002077,2]
[373988029,1753170643890,-151.0,0.0002077,2]
[373988031,1753170643899,-151.0,0.0002077,2]
[373988032,1753170643908,-151.0,0.0002077,2]
[373988035,1753170643919,-151.0,0.0002077,2]
[373988037,1753170643928,-151.0,0.0002077,2]
[373988039,1753170643938,-151.0,0.0002077,2]
[373988041,1753170643947,-151.0,0.0002077,2]
[373988043,1753170643957,-151.0,0.0002077,2]
[373988045,1753170643966,-25000.0,0.0002077,2]
[373988047,1753170643975,-151.0,0.0002077,2]
[373988049,1753170643986,-13086.43033508,0.0002077,2]
[373988051,1753170643995,-151.0,0.0002077,2]
[373988053,1753170644005,-151.0,0.0002077,2]
[373988055,1753170644015,-151.0,0.0002077,2]
[373988057,1753170644024,-151.0,0.0002077,2]
[373988059,1753170644033,-151.0,0.0002077,2]
[373988061,1753170644043,-151.0,0.0002077,2]
[373988063,1753170644053,-151.0,0.0002077,2]
[373988065,1753170644063,-810.48,0.00020809,2]
[373988067,1753170644072,-791.99,0.00020809,2]
[373988069,1753170644081,-460.0,0.00020809,2]
[373988071,1753170644091,-1376.41,0.00020809,2]
[373988073,1753170644100,-1828.87,0.0002081,2]
[373988075,1753170644109,-788.65,0.0002081,2]
[373988077,1753170644118,-1246.27,0.0002081,2]
[373988079,1753170644128,-460.0,0.0002081,2]
[373988081,1753170644138,-902.59,0.0002081,2]
[373988083,1753170644147,-487.4,0.0002081,2]
[373988085,1753170644157,-663.07,0.0002081,2]
[373988087,1753170644169,-460.0,0.0002081,2]
[373988089,1753170644179,-460.0,0.0002081,2]
[373988091,1753170644189,-503.84,0.00020812,2]
[373988093,1753170644198,-608.14,0.00020812,2]
[373988095,1753170644210,-713.71,0.00020812,2]
[373988097,1753170644219,-460.0,0.00020813,2]
[373988099,1753170644229,-1358.37,0.00020813,2]
[373988101,1753170644241,-593.33,0.00020814,2]
[373988103,1753170644250,-151.0,0.00020849,4]
[373988105,1753170644259,-2052.69489342,0.00020934,4]
[373988107,1753170644269,-660.0,0.00021033,2]
[373988109,1753170644279,-810.48,0.00021083,2]
[373988112,1753170644289,-791.99,0.00021083,2]
[373988114,1753170644298,-460.0,0.00021083,2]
[373988116,1753170644308,-1376.41,0.00021083,2]
[373988118,1753170644317,-1828.87,0.00021084,2]
[373988120,1753170644328,-788.65,0.00021084,2]
[373988122,1753170644337,-1246.27,0.00021084,2]
[373988124,1753170644346,-548.97681544,0.00021084,2]
[373988126,1753170644355,-902.59,0.00021084,2]
[373988128,1753170644365,-487.4,0.00021084,2]
[373988130,1753170644375,-663.07,0.00021084,2]
[373988132,1753170644384,-460.0,0.00021084,2]
[373988134,1753170644393,-460.0,0.00021084,2]
[373988136,1753170644402,-503.84,0.00021086,2]
[373988138,1753170644411,-608.14,0.00021086,2]
[373988140,1753170644420,-713.71,0.00021086,2]
[373988142,1753170644429,-460.0,0.00021087,2]
[373988143,1753170644438,-1358.37,0.00021087,2]
[373988144,1753170644447,-593.33,0.00021088,2]
[373988145,1753170644456,-249.31997612,0.00021125,2]
[373988146,1753170644464,-2052.69489342,0.0002121,4]
[373988147,1753170644474,-151.0,0.00021355,4]
[373988148,1753170644485,-810.48,0.00021357,2]
[373988149,1753170644493,-791.99,0.00021357,2]
[373988151,1753170644624,-460.0,0.00021357,2]
[373988152,1753170644641,-1376.41,0.00021357,2]
[373988153,1753170644652,-1828.87,0.00021358,2]
[373988154,1753170644664,-788.65,0.00021358,2]
[373988155,1753170644675,-1246.27,0.00021358,2]
[373988156,1753170644686,-902.59,0.00021358,2]
[373988157,1753170644696,-487.4,0.00021358,2]
[373988158,1753170644707,-663.07,0.00021358,2]
[373988159,1753170644718,-308.66,0.00021358,2]
[373988160,1753170644728,-460.0,0.00021358,2]
[373988161,1753170644739,-503.84,0.0002136,2]
[373988162,1753170644749,-608.14,0.0002136,2]
[373988163,1753170644760,-713.71,0.0002136,2]
[373988164,1753170644771,-460.0,0.00021361,2]
[373988165,1753170644781,-1358.37,0.00021361,2]
[373988166,1753170644793,-593.33,0.00021362,2]
[373988167,1753170644803,-2052.69489342,0.00021486,5]
[373988168,1753170644814,-760.0,0.00021581,2]
[373988169,1753170644824,-810.48,0.00021631,2]
[373988170,1753170644834,-791.99,0.00021631,2]
[373988171,1753170644844,-396.3876356,0.00021631,2]
[373988172,1753170644854,-1376.41,0.00021631,2]
[373988173,1753170644864,-1828.87,0.00021632,2]
[373988174,1753170644874,-788.65,0.00021632,2]
[373988175,1753170644884,-1246.27,0.00021632,2]
[373988176,1753170644895,-902.59,0.00021632,2]
[373988177,1753170644905,-487.4,0.00021632,2]
[373988178,1753170644915,-663.07,0.00021632,2]
[373988179,1753170644925,-473.32995056,0.00021632,2]
[373988180,1753170644935,-503.84,0.00021633,2]
[373988181,1753170644945,-608.14,0.00021633,2]
[373988182,1753170644956,-713.71,0.00021633,2]
[373988183,1753170644966,-195.36021801,0.00021635,2]
[373988184,1753170644976,-1358.37,0.00021635,2]
[373988185,1753170644985,-593.33,0.00021636,2]
[373988186,1753170644996,-5540.37567964,0.00021672,2]
[373988187,1753170645006,-2052.69489342,0.00021762,5]
[373988188,1753170645016,-151.0,0.00021862,5]
[373988189,1753170645026,-810.48,0.00021905,2]
[373988190,1753170645036,-791.99,0.00021905,2]
[373988191,1753170645046,-1376.41,0.00021905,2]
[373988192,1753170645056,-1828.87,0.00021906,2]
[373988193,1753170645065,-788.65,0.00021906,2]
[373988194,1753170645075,-1246.27,0.00021906,2]
[373988195,1753170645085,-902.59,0.00021906,2]
[373988196,1753170645095,-487.4,0.00021906,2]
[373988197,1753170645105,-663.07,0.00021906,2]
[373988198,1753170645116,-503.84,0.00021907,2]
[373988199,1753170645126,-608.14,0.00021907,2]
[373988200,1753170645136,-713.71,0.00021907,2]
[373988201,1753170645146,-1358.37,0.00021909,2]
[373988202,1753170645156,-593.33,0.0002191,2]
[373988203,1753170645169,-500.0,0.00021917,2]
[373988204,1753170645179,-500.0,0.00021917,2]
[373988205,1753170645189,-500.0,0.00021917,2]
[373988206,1753170645199,-500.0,0.00021917,2]
[373988207,1753170645208,-500.0,0.00021917,2]
[373988208,1753170645218,-192.28591105,0.00021917,2]
[373988209,1753170645228,-1639.24,0.00022,7]
[373988210,1753170645238,-1725.44,0.00022,7]
[373988211,1753170645252,-2531.72,0.00022,7]
[373988212,1753170645263,-45319.53,0.00022,2]
[373988213,1753170645272,-168.0,0.00022,2]
[373988214,1753170645282,-2052.69489342,0.00022038,6]
[373988215,1753170645292,-648.0,0.00022083,2]
[373988216,1753170645301,-2157.0,0.00022083,2]
[373988217,1753170645311,-968.0,0.00022083,2]
[373988218,1753170645322,-800.0,0.00022128,2]
[373988219,1753170645331,-223.0315306,0.00022139,2]
[373988220,1753170645341,-810.48,0.00022179,2]
[373988221,1753170645351,-791.99,0.00022179,2]
[373988222,1753170645361,-1376.41,0.00022179,2]
[373988223,1753170645371,-1828.87,0.0002218,2]
[373988224,1753170645380,-788.65,0.0002218,2]
[373988225,1753170645390,-1246.27,0.0002218,2]
[373988227,1753170645400,-902.59,0.0002218,2]
[373988228,1753170645410,-487.4,0.0002218,2]
[373988230,1753170645420,-663.07,0.0002218,2]
[373988231,1753170645430,-503.84,0.00022181,2]
[373988233,1753170645439,-608.14,0.00022181,2]
[373988234,1753170645449,-713.71,0.00022181,2]
[373988236,1753170645459,-1358.37,0.00022183,2]
[373988238,1753170645468,-593.33,0.00022184,2]
[373988239,1753170645478,-500.0,0.00022243,2]
[373988241,1753170645488,-2052.69489342,0.00022314,7]
[373988242,1753170645498,-151.0,0.00022368,5]
[373988244,1753170645508,-2200.0,0.00022398,2]
[373988245,1753170645518,-810.48,0.00022453,2]
[373988247,1753170645528,-791.99,0.00022453,2]
[373988249,1753170645538,-1376.41,0.00022453,2]
[373988250,1753170645549,-1828.87,0.00022454,2]
[373988252,1753170645559,-788.65,0.00022454,2]
[373988254,1753170645569,-1246.27,0.00022454,2]
[373988256,1753170645580,-902.59,0.00022454,2]
[373988258,1753170645589,-487.4,0.00022454,2]
[373988261,1753170645600,-663.07,0.00022454,2]
[373988264,1753170645610,-503.84,0.00022455,2]
[373988266,1753170645619,-608.14,0.00022455,2]
[373988269,1753170645629,-713.71,0.00022455,2]
[373988271,1753170645639,-1358.37,0.00022457,2]
[373988274,1753170645650,-593.33,0.00022458,2]
[373988277,1753170645659,-2992.0,0.00022465,2]
[373988279,1753170645669,-534.67,0.0002253,3]
[373988282,1753170645678,-454.11957381,0.00022585,2]